[Event "FIN-ch Seniors 2019"]
[Site "Helsinki"]
[Date "2019.06.17"]
[Round "8.5"]
[White "Ruotanen, Helge"]
[Black "Aakio, Seppo"]
[Result "0-1"]
[ECO "A00"]
[WhiteElo "1920"]
[BlackElo "2051"]
[Annotator "NA RC"]
[PlyCount "78"]
[EventDate "2019.06.10"]
[EventType "swiss"]
[EventCountry "FIN"]
[SourceTitle "playchess.com"]
[Source "ChessBase"]
[SourceQuality "1"]
[TimeControl "40/5400+30:1800+30"]

{[%evp 13,78,-43,-6,-72,-68,-72,-53,-77,-69,32767,-58,32767,-76,-84,-54,-54,
32767,-32,-12,-67,32767,32767,32767,-135,-132,-177,32767,32767,32767,32767,
32767,32767,32767,32767,32767,32767,-177,-168,-179,32767,-176,-172,-181,-173,
32767,32767,32767,-188,32767,32767,32767,32767,32767,32767,32767,32767,32767,
-147,-137,-143,-143,32767,32767,32767,32767,-1201,-1206]} 1. g3 {[%emt 0:07:22]
} e5 {[%emt 0:00:51]} 2. d4 {[%emt 0:00:27]} exd4 {[%emt 0:00:23]} 3. Qxd4 {
[%emt 0:00:02]} Nf6 {[%emt 0:00:58]} 4. Bg2 {[%emt 0:02:29]} Be7 {[%emt 0:03:
26]} 5. Nc3 {[%emt 0:02:47]} O-O {[%emt 0:00:57]} 6. Nf3 {[%emt 0:00:43]} d5 {
[%emt 0:04:40]} 7. O-O {[%emt 0:06:56]} c6 {[%emt 0:06:55]} 8. b4 {[%emt 0:02:
56]} (8. e4 $11 {remains equal.}) 8... Bf5 {[%emt 0:08:35]} 9. Bb2 {[%emt 0:07:
18]} Bxc2 {[%emt 0:03:19]} 10. a3 {[%emt 0:06:10]} Nbd7 {[%emt 0:03:34]} 11.
Rac1 {[%emt 0:00:19]} Bg6 {[%emt 0:00:34]} 12. Rfd1 {[%emt 0:00:48]} Qb6 {
[%emt 0:12:17]} 13. Nh4 {[%emt 0:02:14]} Qxd4 {[%emt 0:02:20]} 14. Rxd4 {
[%emt 0:00:01]} Ne5 {[%emt 0:10:33]} 15. Nxg6 {[%emt 0:03:49]} hxg6 {[%emt 0:
05:39]} 16. Rc2 {[%emt 0:00:09]} (16. e4 $11) 16... Nc4 {[%emt 0:06:28]} 17.
Bc1 {[%emt 0:00:24]} Nd6 {[%emt 0:00:17]} 18. f3 {[%emt 0:00:24]} ({White
should play} 18. Bg5 $15) 18... a5 {[%emt 0:01:50]} 19. b5 {[%emt 0:01:20]} Nc4
{[%emt 0:01:11]} 20. Rd3 {[%emt 0:01:23]} Bxa3 {[%emt 0:06:16]} 21. Bxa3 {
[%emt 0:01:11]} Nxa3 {[%emt 0:00:02]} 22. Ra2 {[%emt 0:00:07]} Nc4 {[%emt 0:00:
20]} 23. e4 {[%emt 0:01:12]} dxe4 {[%emt 0:01:57]} 24. fxe4 {[%emt 0:00:29]}
Rfe8 {[%emt 0:01:49]} 25. bxc6 {[%emt 0:00:35]} bxc6 {[%emt 0:00:01]} 26. Rd4 {
[%emt 0:00:10]} Ne3 {[%emt 0:04:35]} 27. Bf3 {[%emt 0:00:49]} Re5 {[%emt 0:03:
20]} 28. Kf2 {[%emt 0:01:28]} Neg4+ {[%emt 0:00:10]} 29. Kg2 {[%emt 0:00:04]}
Rc5 {[%emt 0:00:55]} 30. Na4 {[%emt 0:00:23]} Rc1 {[%emt 0:00:08]} 31. Nb6 {
[%emt 0:00:49]} Rb8 {[%emt 0:03:05]} 32. Nd7 {[%emt 0:00:07]} Rb5 {[%emt 0:03:
37]} 33. Be2 {[%emt 0:03:25]} Rb4 {[%emt 0:02:40]} 34. Nxf6+ {[%emt 0:00:26]}
Nxf6 {[%emt 0:00:06]} 35. Rd8+ {[%emt 0:01:00]} Kh7 {[%emt 0:00:01]} 36. e5 {
[%emt 0:06:07]} Nd5 {[%emt 0:00:03]} 37. Bd3 {[%emt 0:00:52]} Rd4 {[%emt 0:01:
27]} 38. e6 {[%emt 0:03:54]} fxe6 {[%emt 0:00:10]} 39. Rxa5 {[%emt 0:04:08]}
Rxd3 $19 {[%emt 0:00:28]} 0-1

[Event "FIN-ch Seniors 2019"]
[Site "Helsinki"]
[Date "2019.06.17"]
[Round "8.6"]
[White "Lyly, Seppo"]
[Black "Leukkunen, Raimo"]
[Result "1/2-1/2"]
[ECO "A92"]
[WhiteElo "1907"]
[BlackElo "1876"]
[Annotator "NA RC"]
[PlyCount "45"]
[EventDate "2019.06.10"]
[EventType "swiss"]
[EventCountry "FIN"]
[SourceTitle "playchess.com"]
[Source "ChessBase"]
[SourceQuality "1"]
[TimeControl "40/5400+30:1800+30"]

{[%evp 8,39,39,49,54,59,50,47,32767,32767,32767,32767,110,105,118,100,102,93,
158,167,206,179,171,154,464,229,32767,200,225,207,32767,32767,32767,158]} 1. c4
{[%emt 1:30:30]} f5 {[%emt 1:30:30]} 2. g3 {[%emt 0:00:30]} Nf6 {[%emt 0:00:30]
} 3. Bg2 {[%emt 0:00:30]} e6 {[%emt 0:00:30]} 4. Nf3 {[%emt 0:00:30]} Nc6 {
[%emt 0:00:30]} 5. O-O {[%emt 0:00:30]} Be7 {[%emt 0:00:30]} 6. Nc3 {[%emt 0:
00:30]} O-O {[%emt 0:00:30]} 7. d4 {[%emt 0:00:30]} Qe8 {[%emt 0:00:30] A92:
Classical Dutch: Classical Stonewall (with ...Be7): Early deviations} (7... Ne4
8. Bd2 d5 9. e3 a5 10. Qb3 a4 11. Nxa4 g5 12. Be1 g4 13. Nh4 Bxh4 14. gxh4 Na5
15. Bxa5 Rxa5 16. cxd5 exd5 {1-0 (32) Grigoryan,K (2584)-Alonso Rosell,A (2530)
Barcelona 2017}) 8. Bf4 {[%emt 0:00:30]} d6 {[%emt 0:00:30]} 9. d5 {[%emt 0:00:
30]} exd5 {[%emt 0:00:30]} (9... Nd8 $1 $11) 10. cxd5 {[%emt 0:00:30]} Nd8 {
[%emt 0:00:30]} 11. Nd4 {[%emt 0:00:30]} a6 {[%emt 0:00:30]} 12. Re1 $146 {
[%emt 0:00:30]} ({Predecessor:} 12. Qd3 Qg6 13. f3 c6 14. dxc6 bxc6 15. Nxc6
Nxc6 {0-1 (35) Wieland,B-Schulte,S Oberhof 1998}) 12... h6 {[%emt 0:00:30]} (
12... Qf7 $142) 13. e4 {[%emt 0:00:30]} g5 {[%emt 0:00:30]} 14. Bd2 {[%emt 0:
00:30]} fxe4 {[%emt 0:00:30]} 15. Nxe4 {[%emt 0:00:30]} ({Don't take} 15. Bxe4
$6 Ng4 $16) 15... Ng4 $2 {[%emt 0:00:30]} (15... Nxe4 16. Bxe4 Qf7) 16. h3 {
[%emt 0:00:30]} (16. Rc1 $142) 16... Ne5 {[%emt 0:00:30]} 17. Bc3 {[%emt 0:00:
30]} Qg6 {[%emt 0:00:30]} 18. Qe2 $18 {[%emt 0:00:30]} h5 {[%emt 0:00:30]} 19.
Nd2 {[%emt 0:00:30]} g4 {[%emt 0:00:30]} 20. h4 {[%emt 0:00:30]} c5 {[%emt 0:
00:30]} 21. Ne6 {[%emt 0:00:30]} Bxe6 {[%emt 0:00:30]} 22. Bxe5 {[%emt 0:00:30]
} Bf5 {[%emt 0:00:30]} 23. Bc3 {[%emt 0:00:30]} 1/2-1/2

[Event "FIN-ch Seniors 2019"]
[Site "Helsinki"]
[Date "2019.06.17"]
[Round "8.7"]
[White "Kangas, Mauno"]
[Black "Saharinen, Petri"]
[Result "1/2-1/2"]
[ECO "A07"]
[WhiteElo "1831"]
[BlackElo "1719"]
[Annotator "NA"]
[PlyCount "109"]
[EventDate "2019.06.10"]
[EventType "swiss"]
[EventCountry "FIN"]
[SourceTitle "playchess.com"]
[Source "ChessBase"]
[SourceQuality "1"]
[TimeControl "40/5400+30:1800+30"]

{[%evp 8,109,20,11,18,0,32767,32767,32767,-34,32767,32767,32767,32767,32767,
32767,32767,32767,-5,-40,-15,-34,-31,-49,-31,-109,-87,-110,-120,-107,-108,-148,
-142,32767,32767,32767,-123,-106,-70,-187,-162,-187,-183,-192,-207,-190,-146,
32767,32767,32767,0,-184,32767,32767,32767,32767,32767,-463,-504,-535,-596,
-658,-533,-510,-282,-348,32767,32767,32767,32767,32767,32767,32767,32767,32767,
32767,32767,-447,-481,-477,-420,-518,32767,32767,32767,32767,32767,32767,32767,
-725,-675,-515,0,0,0,0,0,2,0,0,0,0,0,-29992]} 1. Nf3 {[%emt 0:00:00]} Nf6 {
[%emt 0:00:00]} 2. g3 {[%emt 0:00:00]} d5 {[%emt 0:00:00]} 3. Bg2 {[%emt 0:00:
04]} c6 {[%emt 0:00:00]} 4. d3 {[%emt 0:02:15]} Bg4 {[%emt 0:00:07]} 5. O-O {
[%emt 0:01:33]} e6 {[%emt 0:00:20]} 6. c3 {[%emt 0:02:31] A07: Réti Opening:
New York and Capablanca Systems} (6. Nbd2 Be7 7. b3 O-O 8. Bb2 a5 9. a3 Nbd7
10. c4 Bd6 11. Qc2 Qe7 12. e4 dxe4 13. dxe4 e5 14. Nh4 Rfe8 15. h3 Be6 16. Nf5
Bxf5 17. exf5 e4 18. Rfe1 {1/2-1/2 (46) Fridman,D (2633)-Sargissian,G (2689)
St Petersburg 2018}) 6... Nbd7 {[%emt 0:00:32]} 7. a4 {[%emt 0:00:34]} Bd6 {
[%emt 0:02:02]} 8. b4 {[%emt 0:00:54]} a6 $146 {[%emt 0:00:59]} ({Predecessor:
} 8... h6 9. Nbd2 O-O 10. Re1 Bc7 {1-0 (59) Schoeppe,C (1610)-Straslipka,J 
(1748) Teplice 2015}) 9. Bb2 {[%emt 0:05:41]} O-O {[%emt 0:00:27]} 10. Nbd2 {
[%emt 0:00:36]} e5 {[%emt 0:01:56]} 11. Qc2 {[%emt 0:01:34]} Re8 {[%emt 0:02:
48]} 12. e4 {[%emt 0:00:57]} Rc8 {[%emt 0:02:20]} 13. Qb3 {[%emt 0:02:44]} dxe4
{[%emt 0:01:39]} 14. dxe4 {[%emt 0:04:24]} Be6 {[%emt 0:04:55]} 15. Qc2 {
[%emt 0:04:52]} h6 {[%emt 0:00:13]} 16. Rad1 {[%emt 0:01:59]} (16. Rfd1 $15)
16... Qc7 {[%emt 0:01:09]} 17. Nh4 {[%emt 0:14:31]} c5 {[%emt 0:01:44]} 18. b5
{[%emt 0:01:34]} axb5 {[%emt 0:00:19]} 19. axb5 {[%emt 0:00:26] [#]} c4 $1 {
[%emt 0:00:56]} 20. Nf5 {[%emt 0:01:31]} Bf8 {[%emt 0:00:11]} 21. Nb1 {[%emt 0:
02:38]} g6 {[%emt 0:01:31]} 22. Ne3 {[%emt 0:02:17]} Qa5 {[%emt 0:08:52]} 23.
f4 {[%emt 0:01:31]} (23. Na3 $17) 23... exf4 {[%emt 0:01:24]} ({Resist} 23...
Qxb5 24. f5 $17) 24. gxf4 {[%emt 0:00:04]} Bc5 {[%emt 0:00:41]} ({Much less
strong is} 24... Qxb5 25. f5 $17) 25. Bc1 {[%emt 0:14:47]} Ng4 {[%emt 0:02:33]}
({Don't do} 25... Qxb5 26. f5 $17) 26. Rd4 {[%emt 0:06:16]} Bxd4 {[%emt 0:03:
38]} 27. cxd4 {[%emt 0:00:02]} Nxe3 {[%emt 0:00:24]} 28. Bxe3 {[%emt 0:00:04] 
[#]} f5 $2 {[%emt 0:00:55]} ({Much less strong is} 28... Qxb5 29. d5 $17) ({
Better is} 28... c3 $1 $19 29. f5 gxf5) 29. d5 $2 {[%emt 0:00:30]} (29. e5 $11
{and White is okay.}) 29... Bxd5 {[%emt 0:00:42]} 30. e5 {[%emt 0:03:54]} Bxg2
{[%emt 0:05:15]} 31. Qxg2 {[%emt 0:00:03]} Nf8 {[%emt 0:00:19]} 32. Qd5+ {
[%emt 0:05:50]} Ne6 {[%emt 0:01:05]} 33. Nd2 {[%emt 0:00:47]} Rcd8 {[%emt 0:01:
09]} 34. Nxc4 {[%emt 0:00:28]} Rxd5 {[%emt 0:02:29]} 35. Nxa5 {[%emt 0:00:02]}
b6 {[%emt 0:00:30]} 36. Nb7 {[%emt 0:00:18]} Nc5 {[%emt 0:03:42]} 37. Nd6 {
[%emt 0:00:42]} Rxd6 {[%emt 0:00:41]} 38. Bxc5 {[%emt 0:00:44]} Rd5 {[%emt 0:
01:23]} 39. Bxb6 {[%emt 0:01:32]} Rxb5 {[%emt 0:00:08]} 40. Bf2 {[%emt 0:01:54]
} g5 {[%emt 0:00:33]} 41. Be3 {[%emt 0:33:48]} g4 {[%emt 0:31:08]} 42. h3 {
[%emt 0:04:05]} Rb3 {[%emt 0:01:28]} 43. Re1 {[%emt 0:03:37]} h5 {[%emt 0:00:
31]} 44. Kg2 {[%emt 0:04:35]} Rc8 {[%emt 0:00:25]} 45. hxg4 {[%emt 0:01:48]}
hxg4 {[%emt 0:00:40]} 46. e6 {[%emt 0:00:00]} Rc2+ {[%emt 0:00:00]} 47. Bf2 {
[%emt 0:00:00]} Kf8 {[%emt 0:00:00]} 48. Kg1 {[%emt 0:00:00]} Rf3 {[%emt 0:00:
00]} 49. Bh4 {[%emt 0:00:00]} Rxf4 $2 {[%emt 0:00:00]} (49... Ra3 $19 50. Bf6
Rg3+ 51. Kf1 Rh3) 50. e7+ $1 {[%emt 0:00:00]} Ke8 {[%emt 0:00:00]} 51. Rd1 $1 {
[%emt 0:00:00]} Re2 {[%emt 0:00:00]} 52. Rd8+ {[%emt 0:00:00]} Kf7 {[%emt 0:00:
00]} 53. Rf8+ {[%emt 0:00:00]} Kg6 {[%emt 0:00:00]} 54. e8=Q+ {[%emt 0:00:00]
Ree4 Qxe4 Rxe4 Kg2 Rf4 Bg3 Rf3} Rxe8 {[%emt 0:00:00] Kg7 Rd8 Kg6 Bh4 Kf7 Rd7+
Kg6 Rd8 Kf7 Rd6 Kg7} 55. Bf6 {[%emt 0:01:13] Kf7 Bg5 Kg7 Bf6+} (55. Rxe8 $11
Ra4 56. Rf8) 1/2-1/2

[Event "FIN-ch Seniors 2019"]
[Site "Helsinki"]
[Date "2019.06.17"]
[Round "8.8"]
[White "Gronroos, Matti"]
[Black "Visti, Heikki"]
[Result "1-0"]
[ECO "B09"]
[WhiteElo "1931"]
[BlackElo "2000"]
[Annotator "NA"]
[PlyCount "94"]
[EventDate "2019.06.10"]
[EventType "swiss"]
[EventCountry "FIN"]
[SourceTitle "playchess.com"]
[Source "ChessBase"]
[SourceQuality "1"]
[TimeControl "40/5400+30:1800+30"]

{[%evp 8,85,39,-9,-4,32767,18,32767,32767,32767,32767,32767,32767,32767,32767,
32767,32767,32767,32767,77,98,117,137,121,157,139,144,133,141,144,138,128,145,
115,32767,133,181,32767,184,174,234,32767,32767,141,32767,150,177,192,180,
32767,32767,32767,213,32767,32767,32767,286,32767,360,32767,32767,32767,32767,
32767,32767,287,279,180,211,228,235,200,243,208,211,196,168,188,314,319]} 1. e4
{[%emt 0:00:00]} d6 {[%emt 0:00:09]} 2. d4 {[%emt 0:00:12]} Nf6 {[%emt 0:00:41]
} 3. Nc3 {[%emt 0:00:07]} g6 {[%emt 0:01:32]} 4. f4 {[%emt 0:00:42]} Bg7 {
[%emt 0:03:31]} 5. e5 {[%emt 0:00:08]} dxe5 {[%emt 0:00:52]} 6. dxe5 {[%emt 0:
00:14]} Qxd1+ {[%emt 0:00:17]} 7. Kxd1 {[%emt 0:00:16]} Ng4 {[%emt 0:04:01]} 8.
Nd5 {[%emt 0:00:11]} Kd8 {[%emt 0:01:18]} 9. Ke1 {[%emt 0:00:25]} c6 {[%emt 0:
00:34]} 10. Nc3 {[%emt 0:03:55]} Bf5 {[%emt 0:02:50] B09: Pirc Defence:
Austrian Attack} (10... Nh6 11. Nf3 Rf8 12. Be3 f6 13. Rd1+ Kc7 14. Bc5 Re8 15.
exf6 exf6+ 16. Be2 b6 17. Bd6+ Kb7 18. Ba3 Ng4 19. Rd2 Bh6 20. g3 Ne3 21. Kf2
g5 22. Bd3 Bh3 {1/2-1/2 (22) Robulj,N (2298)-Sredojevic,I (2416) Kragujevac
2015}) 11. Bc4 $146 {[%emt 0:01:34]} ({Predecessor:} 11. h3 Nh6 12. g4 Be6 13.
Nf3 Nd7 14. Ng5 Bd5 15. Nxd5 cxd5 16. c4 Nb6 17. cxd5 Nxd5 18. Bg2 {1-0 (45)
Andrade,R (2177)-Braga,J (1911) Montevideo 2015}) 11... Rf8 {[%emt 0:01:09]}
12. Bb3 {[%emt 0:00:27]} Na6 {[%emt 0:00:23]} 13. h3 {[%emt 0:02:01]} Nh6 {
[%emt 0:00:30]} 14. g4 {[%emt 0:02:58]} Bd7 {[%emt 0:02:04]} 15. Be3 {[%emt 0:
00:11]} Kc7 {[%emt 0:00:22]} 16. Nf3 {[%emt 0:05:26]} b6 {[%emt 0:04:25]} 17.
Ke2 {[%emt 0:07:01]} Rad8 {[%emt 0:03:16]} 18. a4 {[%emt 0:08:38]} Kb7 {
[%emt 0:03:28]} 19. a5 {[%emt 0:01:04]} Nc7 {[%emt 0:08:27]} 20. axb6 {[%emt 0:
00:12]} axb6 {[%emt 0:00:19]} 21. Ra3 {[%emt 0:13:08]} c5 {[%emt 0:04:28]} 22.
Rha1 {[%emt 0:06:17]} Ra8 {[%emt 0:09:58]} 23. Rxa8 {[%emt 0:01:13]} Nxa8 {
[%emt 0:04:37]} 24. Ng5 {[%emt 0:08:27]} Nc7 {[%emt 0:10:16]} 25. Nxh7 {
[%emt 0:01:19]} Rh8 {[%emt 0:00:30]} 26. Ng5 {[%emt 0:00:17]} f6 {[%emt 0:01:
21] [#]} 27. exf6 $1 {[%emt 0:01:29]} exf6 {[%emt 0:02:02]} 28. Nf3 {[%emt 0:
07:32]} Bc6 {[%emt 0:07:34]} 29. Kf2 {[%emt 0:04:33]} Re8 {[%emt 0:08:23]} (
29... Ng8 $16) 30. Rd1 {[%emt 0:01:56]} Re7 {[%emt 0:03:08]} 31. Nh4 {[%emt 0:
09:37]} Be8 {[%emt 0:04:08]} 32. f5 {[%emt 0:03:39]} gxf5 {[%emt 0:00:58]} 33.
Bxh6 {[%emt 0:01:56]} Bxh6 {[%emt 0:03:12]} 34. Nxf5 {[%emt 0:00:11]} Rh7 {
[%emt 0:00:12]} 35. Nd6+ {[%emt 0:01:43]} Ka7 {[%emt 0:03:45]} 36. Ra1+ {
[%emt 0:04:31]} Kb8 {[%emt 0:00:15]} 37. Nxe8 {[%emt 0:01:59]} Nxe8 {[%emt 0:
00:12]} 38. Bd5 {[%emt 0:01:05]} Nc7 {[%emt 0:01:01]} 39. Be4 {[%emt 0:01:00]}
Re7 {[%emt 0:00:32]} 40. Kf3 {[%emt 0:00:22]} Bg5 {[%emt 0:01:00]} 41. Rd1 {
[%emt 0:30:27]} b5 {[%emt 0:04:29]} 42. Rd6 {[%emt 0:00:00]} Re5 $2 {[%emt 0:
04:09]} (42... Ka7 $16 {was worth a try.} 43. Ne2 b4) 43. Rb6+ $18 {[%emt 0:00:
00]} Kc8 {[%emt 0:00:40]} 44. Nxb5 {[%emt 0:00:00]} Ne6 {[%emt 0:00:54]} 45.
Rxe6 {[%emt 0:00:00]} Rxe6 {[%emt 0:00:31]} 46. Bf5 {[%emt 0:00:00]} Kd7 {
[%emt 0:00:01]} 47. Nc3 {[%emt 0:00:00]} Kd8 {[%emt 0:02:17]} 1-0